[Event "Titled Tuesday Blitz July 18 Early 2023"]
[White "Goryachkina, Aleksandra"]
[Black "Jiang, Andrew"]
[WhiteFideId "4147103"]
[BlackFideId "30953510"]
[WhiteElo "2659"]
[BlackElo "2352"]
[Result "1/2-1/2"]
[Round "1"]
[TimeControl "180+2"]
[Date "2023.07.18"]
[WhiteClock "0:00:11"]
[BlackClock "0:00:07"]
[Board "118"]

1. e4 {[%clk 0:03:00]}  e5 {[%clk 0:02:57]} 2. Nc3 {[%clk 0:02:59]}  Nf6 {[%clk 0:02:57]} 3. d4 {[%clk 0:02:59]}  exd4 {[%clk 0:02:56]} 4. Qxd4 {[%clk 0:03:00]}  Nc6 {[%clk 0:02:56]} 5. Qd3 {[%clk 0:03:00]}  Bb4 {[%clk 0:02:48]} 6. Bd2 {[%clk 0:02:59]}  d6 {[%clk 0:02:48]} 7. O-O-O {[%clk 0:02:57]}  O-O {[%clk 0:02:47]} 8. f3 {[%clk 0:02:42]}  Be6 {[%clk 0:02:42]} 9. g4 {[%clk 0:02:38]}  Qe7 {[%clk 0:02:39]} 10. g5 {[%clk 0:02:24]}  Nd7 {[%clk 0:02:37]} 11. f4 {[%clk 0:02:08]}  Nc5 {[%clk 0:02:30]} 12. Qe3 {[%clk 0:01:46]}  Bg4 {[%clk 0:02:26]} 13. Re1 {[%clk 0:01:19]}  Bxc3 {[%clk 0:02:05]} 14. Bxc3 {[%clk 0:01:19]}  Rfe8 {[%clk 0:02:02]} 15. Bd3 {[%clk 0:01:03]}  d5 {[%clk 0:01:49]} 16. Qg3 {[%clk 0:00:56]}  dxe4 {[%clk 0:01:37]} 17. Qxg4 {[%clk 0:00:54]}  Nxd3+ {[%clk 0:01:37]} 18. cxd3 {[%clk 0:00:54]}  Qc5 {[%clk 0:01:37]} 19. dxe4 {[%clk 0:00:50]}  b5 {[%clk 0:01:37]} 20. Kb1 {[%clk 0:00:44]}  b4 {[%clk 0:01:27]} 21. Be5 {[%clk 0:00:44]}  Nxe5 {[%clk 0:01:13]} 22. fxe5 {[%clk 0:00:45]}  Rxe5 {[%clk 0:01:03]} 23. Nf3 {[%clk 0:00:45]}  Re7 {[%clk 0:01:03]} 24. Rc1 {[%clk 0:00:34]}  Qb6 {[%clk 0:00:58]} 25. Rhd1 {[%clk 0:00:33]}  Rae8 {[%clk 0:00:54]} 26. e5 {[%clk 0:00:33]}  a5 {[%clk 0:00:47]} 27. Qc4 {[%clk 0:00:25]}  h6 {[%clk 0:00:40]} 28. gxh6 {[%clk 0:00:23]}  Qxh6 {[%clk 0:00:41]} 29. Rg1 {[%clk 0:00:20]}  Qh7+ {[%clk 0:00:35]} 30. Ka1 {[%clk 0:00:20]}  Qf5 {[%clk 0:00:35]} 31. Qg4 {[%clk 0:00:19]}  Qxg4 {[%clk 0:00:25]} 32. Rxg4 {[%clk 0:00:20]}  Rd8 {[%clk 0:00:25]} 33. Rcg1 {[%clk 0:00:20]}  g6 {[%clk 0:00:24]} 34. h4 {[%clk 0:00:20]}  Rd3 {[%clk 0:00:24]} 35. R4g3 {[%clk 0:00:20]}  Red7 {[%clk 0:00:21]} 36. Kb1 {[%clk 0:00:20]}  a4 {[%clk 0:00:21]} 37. Ng5 {[%clk 0:00:16]}  Rd2 {[%clk 0:00:13]} 38. Ne4 {[%clk 0:00:16]}  Rd1+ {[%clk 0:00:09]} 39. Rxd1 {[%clk 0:00:15]}  Rxd1+ {[%clk 0:00:09]} 40. Kc2 {[%clk 0:00:16]}  Re1 {[%clk 0:00:09]} 41. Nf6+ {[%clk 0:00:15]}  Kg7 {[%clk 0:00:10]} 42. Ng4 {[%clk 0:00:15]}  Re2+ {[%clk 0:00:09]} 43. Kc1 {[%clk 0:00:15]}  Kf8 {[%clk 0:00:06]} 44. Re3 {[%clk 0:00:12]}  Rg2 {[%clk 0:00:05]} 45. Re4 {[%clk 0:00:12]}  b3 {[%clk 0:00:05]} 46. Rxa4 {[%clk 0:00:11]}  bxa2 {[%clk 0:00:05]} 47. Rxa2 {[%clk 0:00:08]}  Rxg4 {[%clk 0:00:05]} 48. Ra7 {[%clk 0:00:08]}  Rxh4 {[%clk 0:00:05]} 49. Rxc7 {[%clk 0:00:09]}  Re4 {[%clk 0:00:06]} 50. Rc5 {[%clk 0:00:09]}  g5 {[%clk 0:00:06]} 51. Kd2 {[%clk 0:00:09]}  g4 {[%clk 0:00:06]} 52. Kd3 {[%clk 0:00:10]}  Re1 {[%clk 0:00:07]} 53. Kd2 {[%clk 0:00:10]}  Re4 {[%clk 0:00:07]} 54. Kd3 {[%clk 0:00:10]}  Re1 {[%clk 0:00:07]} 55. Kd2 {[%clk 0:00:11]}  Re4 {[%clk 0:00:07]} 1/2-1/2


[Site "https://www.chess.com"]

[Event "Titled Tuesday Blitz July 18 Early 2023"]
[White "Spata, German"]
[Black "Alahakoon, Isuru"]
[WhiteFideId "113026"]
[BlackFideId "9900993"]
[WhiteElo "2649"]
[BlackElo "2347"]
[Result "1-0"]
[Round "1"]
[TimeControl "180+2"]
[Date "2023.07.18"]
[WhiteClock "0:01:35"]
[BlackClock "0:00:00"]
[Board "122"]

1. Nf3 {[%clk 0:03:00]}  d5 {[%clk 0:02:59]} 2. e3 {[%clk 0:03:01]}  Nc6 {[%clk 0:02:58]} 3. c4 {[%clk 0:03:01]}  d4 {[%clk 0:02:56]} 4. exd4 {[%clk 0:03:02]}  Nxd4 {[%clk 0:02:56]} 5. d3 {[%clk 0:03:02]}  g6 {[%clk 0:02:50]} 6. Nxd4 {[%clk 0:03:02]}  Qxd4 {[%clk 0:02:49]} 7. Be2 {[%clk 0:03:01]}  Bg7 {[%clk 0:02:48]} 8. O-O {[%clk 0:03:01]}  Nf6 {[%clk 0:02:47]} 9. Nc3 {[%clk 0:03:01]}  c6 {[%clk 0:02:45]} 10. Be3 {[%clk 0:03:01]}  Qd6 {[%clk 0:02:40]} 11. d4 {[%clk 0:03:00]}  h5 {[%clk 0:02:38]} 12. h3 {[%clk 0:02:58]}  O-O {[%clk 0:02:37]} 13. Qd2 {[%clk 0:02:58]}  Bf5 {[%clk 0:02:30]} 14. Rfd1 {[%clk 0:02:54]}  Rad8 {[%clk 0:02:22]} 15. Bf4 {[%clk 0:02:54]}  Qd7 {[%clk 0:02:22]} 16. Be5 {[%clk 0:02:54]}  Ne4 {[%clk 0:02:18]} 17. Nxe4 {[%clk 0:02:54]}  Bxe5 {[%clk 0:02:18]} 18. dxe5 {[%clk 0:02:45]}  Qxd2 {[%clk 0:02:17]} 19. Nxd2 {[%clk 0:02:45]}  Bc2 {[%clk 0:02:17]} 20. Nf3 {[%clk 0:02:37]}  Bxd1 {[%clk 0:02:15]} 21. Rxd1 {[%clk 0:02:32]}  Rxd1+ {[%clk 0:02:14]} 22. Bxd1 {[%clk 0:02:32]}  Rd8 {[%clk 0:02:15]} 23. Bc2 {[%clk 0:02:31]}  e6 {[%clk 0:02:06]} 24. Kf1 {[%clk 0:02:31]}  Kf8 {[%clk 0:02:05]} 25. Ke2 {[%clk 0:02:31]}  Ke7 {[%clk 0:02:06]} 26. Be4 {[%clk 0:02:30]}  Rd7 {[%clk 0:02:01]} 27. b3 {[%clk 0:02:28]}  a5 {[%clk 0:01:59]} 28. Nd2 {[%clk 0:02:25]}  Rd4 {[%clk 0:01:56]} 29. Ke3 {[%clk 0:02:15]}  Rd7 {[%clk 0:01:55]} 30. c5 {[%clk 0:02:11]}  Rd8 {[%clk 0:01:47]} 31. f4 {[%clk 0:02:11]}  Ra8 {[%clk 0:01:40]} 32. Nc4 {[%clk 0:02:09]}  a4 {[%clk 0:01:40]} 33. b4 {[%clk 0:02:09]}  a3 {[%clk 0:01:31]} 34. Bc2 {[%clk 0:02:04]}  Rd8 {[%clk 0:01:26]} 35. Nd6 {[%clk 0:02:04]}  Rb8 {[%clk 0:01:22]} 36. Kd4 {[%clk 0:01:50]}  Kf8 {[%clk 0:01:08]} 37. Kc4 {[%clk 0:01:42]}  Ke7 {[%clk 0:01:04]} 38. Be4 {[%clk 0:01:39]}  h4 {[%clk 0:00:56]} 39. b5 {[%clk 0:01:39]}  cxb5+ {[%clk 0:00:52]} 40. Kxb5 {[%clk 0:01:39]}  f5 {[%clk 0:00:17]} 41. Bxb7 {[%clk 0:01:35]}  Kd7 {[%clk 0:00:14]} 42. Kb6 {[%clk 0:01:36]}  Rg8 {[%clk 0:00:11]} 43. c6+ {[%clk 0:01:35]}  Ke7 {[%clk 0:00:00]} 44. c7 {[%clk 0:01:35]} 1-0


[Site "https://www.chess.com"]

[Event "Titled Tuesday Blitz July 18 Early 2023"]
[White "Glavina, Pablo"]
[Black "Lamaze, Simon"]
[WhiteFideId "100234"]
[BlackFideId "36069264"]
[WhiteElo "2345"]
[BlackElo "2647"]
[Result "1-0"]
[Round "1"]
[TimeControl "180+2"]
[Date "2023.07.18"]
[WhiteClock "0:00:37"]
[BlackClock "0:00:15"]
[Board "123"]

1. c4 {[%clk 0:02:58]}  e6 {[%clk 0:02:54]} 2. g3 {[%clk 0:02:57]}  d5 {[%clk 0:02:54]} 3. Bg2 {[%clk 0:02:58]}  Nf6 {[%clk 0:02:54]} 4. Nf3 {[%clk 0:02:58]}  d4 {[%clk 0:02:55]} 5. O-O {[%clk 0:02:57]}  Nc6 {[%clk 0:02:55]} 6. d3 {[%clk 0:02:57]}  Bc5 {[%clk 0:02:53]} 7. Nbd2 {[%clk 0:02:56]}  a5 {[%clk 0:02:52]} 8. Nb3 {[%clk 0:02:51]}  Be7 {[%clk 0:02:52]} 9. e3 {[%clk 0:02:45]}  dxe3 {[%clk 0:02:48]} 10. Bxe3 {[%clk 0:02:46]}  Ng4 {[%clk 0:02:48]} 11. Bc5 {[%clk 0:02:28]}  O-O {[%clk 0:02:48]} 12. Bxe7 {[%clk 0:02:11]}  Qxe7 {[%clk 0:02:49]} 13. Nfd4 {[%clk 0:02:09]}  Nxd4 {[%clk 0:02:44]} 14. Nxd4 {[%clk 0:02:09]}  Nf6 {[%clk 0:02:44]} 15. Qe2 {[%clk 0:02:06]}  Rd8 {[%clk 0:02:43]} 16. Nf3 {[%clk 0:02:04]}  a4 {[%clk 0:02:31]} 17. d4 {[%clk 0:02:00]}  a3 {[%clk 0:02:30]} 18. b3 {[%clk 0:01:59]}  Qb4 {[%clk 0:02:24]} 19. Rfd1 {[%clk 0:01:56]}  Bd7 {[%clk 0:02:19]} 20. Ne5 {[%clk 0:01:55]}  Be8 {[%clk 0:02:18]} 21. Rac1 {[%clk 0:01:46]}  Rac8 {[%clk 0:02:14]} 22. Rd2 {[%clk 0:01:38]}  b5 {[%clk 0:02:12]} 23. Bb7 {[%clk 0:01:31]}  Rb8 {[%clk 0:02:11]} 24. Bc6 {[%clk 0:01:31]}  bxc4 {[%clk 0:01:41]} 25. Bxe8 {[%clk 0:01:19]}  Rxe8 {[%clk 0:01:42]} 26. Nc6 {[%clk 0:01:18]}  Qb7 {[%clk 0:01:42]} 27. Rxc4 {[%clk 0:01:09]}  Ra8 {[%clk 0:01:42]} 28. Qf3 {[%clk 0:01:03]}  Nd5 {[%clk 0:01:37]} 29. Rdc2 {[%clk 0:01:04]}  Qb6 {[%clk 0:01:34]} 30. Ne5 {[%clk 0:01:02]}  Re7 {[%clk 0:01:29]} 31. Nc6 {[%clk 0:00:54]}  Ree8 {[%clk 0:01:23]} 32. Ne5 {[%clk 0:00:54]}  f6 {[%clk 0:01:23]} 33. Nd3 {[%clk 0:00:52]}  Red8 {[%clk 0:01:21]} 34. Nc5 {[%clk 0:00:51]}  Kh8 {[%clk 0:01:19]} 35. Re2 {[%clk 0:00:49]}  Nb4 {[%clk 0:00:47]} 36. Rxe6 {[%clk 0:00:47]}  Qb5 {[%clk 0:00:47]} 37. Re7 {[%clk 0:00:44]}  Nxa2 {[%clk 0:00:46]} 38. Ne6 {[%clk 0:00:39]}  Rg8 {[%clk 0:00:21]} 39. Qg4 {[%clk 0:00:38]}  g6 {[%clk 0:00:17]} 40. Qh4 {[%clk 0:00:37]}  Qh5 {[%clk 0:00:15]} 41. Qxf6+ {[%clk 0:00:37]} 1-0


[Site "https://www.chess.com"]

[Event "Titled Tuesday Blitz July 18 Early 2023"]
[White "Tregubov, Pavel V."]
[Black "TomLiu777"]
[WhiteFideId "4115341"]
[WhiteElo "2646"]
[BlackElo "2343"]
[Result "1/2-1/2"]
[Round "1"]
[TimeControl "180+2"]
[Date "2023.07.18"]
[WhiteClock "0:00:03"]
[BlackClock "0:00:02"]
[Board "124"]

1. e4 {[%clk 0:02:59]}  e6 {[%clk 0:02:54]} 2. d4 {[%clk 0:02:59]}  d5 {[%clk 0:02:42]} 3. exd5 {[%clk 0:02:59]}  exd5 {[%clk 0:02:40]} 4. Nf3 {[%clk 0:02:59]}  Nf6 {[%clk 0:02:39]} 5. Bd3 {[%clk 0:02:59]}  Bd6 {[%clk 0:02:39]} 6. Qe2+ {[%clk 0:02:59]}  Be6 {[%clk 0:02:39]} 7. c4 {[%clk 0:02:56]}  dxc4 {[%clk 0:02:37]} 8. Bxc4 {[%clk 0:02:55]}  Qe7 {[%clk 0:02:37]} 9. Bxe6 {[%clk 0:02:54]}  fxe6 {[%clk 0:02:36]} 10. O-O {[%clk 0:02:52]}  O-O {[%clk 0:02:33]} 11. Re1 {[%clk 0:02:52]}  Re8 {[%clk 0:02:08]} 12. Bg5 {[%clk 0:02:43]}  Nc6 {[%clk 0:02:06]} 13. Nc3 {[%clk 0:02:42]}  Qf7 {[%clk 0:01:56]} 14. Qb5 {[%clk 0:02:34]}  a6 {[%clk 0:01:45]} 15. Qb3 {[%clk 0:02:22]}  e5 {[%clk 0:01:13]} 16. Qxf7+ {[%clk 0:01:51]}  Kxf7 {[%clk 0:01:14]} 17. d5 {[%clk 0:01:49]}  Nd4 {[%clk 0:01:03]} 18. Nxd4 {[%clk 0:01:02]}  exd4 {[%clk 0:01:04]} 19. Bxf6 {[%clk 0:01:02]}  Kxf6 {[%clk 0:01:03]} 20. Ne4+ {[%clk 0:01:02]}  Ke5 {[%clk 0:01:01]} 21. Nc3+ {[%clk 0:00:33]}  Kf5 {[%clk 0:00:57]} 22. Ne2 {[%clk 0:00:33]}  Be5 {[%clk 0:00:39]} 23. Red1 {[%clk 0:00:27]}  Bxh2+ {[%clk 0:00:36]} 24. Kf1 {[%clk 0:00:21]}  Be5 {[%clk 0:00:35]} 25. Nxd4+ {[%clk 0:00:21]}  Kf6 {[%clk 0:00:29]} 26. Rac1 {[%clk 0:00:19]}  Rad8 {[%clk 0:00:25]} 27. Ne6 {[%clk 0:00:19]}  Rd7 {[%clk 0:00:17]} 28. Nc5 {[%clk 0:00:19]}  Rd6 {[%clk 0:00:14]} 29. Nxb7 {[%clk 0:00:19]}  Rb6 {[%clk 0:00:14]} 30. Rc6+ {[%clk 0:00:19]}  Rxc6 {[%clk 0:00:10]} 31. dxc6 {[%clk 0:00:19]}  Re6 {[%clk 0:00:10]} 32. Nd8 {[%clk 0:00:18]}  Rd6 {[%clk 0:00:09]} 33. Rxd6+ {[%clk 0:00:18]}  Bxd6 {[%clk 0:00:08]} 34. Nb7 {[%clk 0:00:18]}  Ke5 {[%clk 0:00:06]} 35. Ke2 {[%clk 0:00:15]}  Kd5 {[%clk 0:00:06]} 36. Kd3 {[%clk 0:00:16]}  Kxc6 {[%clk 0:00:06]} 37. Nxd6 {[%clk 0:00:15]}  Kxd6 {[%clk 0:00:06]} 38. Kd4 {[%clk 0:00:15]}  c6 {[%clk 0:00:06]} 39. b4 {[%clk 0:00:15]}  g6 {[%clk 0:00:05]} 40. f4 {[%clk 0:00:14]}  h5 {[%clk 0:00:03]} 41. g3 {[%clk 0:00:13]}  Ke6 {[%clk 0:00:01]} 42. Kc5 {[%clk 0:00:14]}  Kf5 {[%clk 0:00:01]} 43. Kxc6 {[%clk 0:00:14]}  Kg4 {[%clk 0:00:02]} 44. a4 {[%clk 0:00:14]}  Kxg3 {[%clk 0:00:02]} 45. b5 {[%clk 0:00:15]}  axb5 {[%clk 0:00:01]} 46. axb5 {[%clk 0:00:15]}  h4 {[%clk 0:00:02]} 47. b6 {[%clk 0:00:15]}  h3 {[%clk 0:00:03]} 48. b7 {[%clk 0:00:16]}  h2 {[%clk 0:00:04]} 49. b8=Q {[%clk 0:00:16]}  h1=Q+ {[%clk 0:00:04]} 50. Kd7 {[%clk 0:00:14]}  Qd1+ {[%clk 0:00:04]} 51. Ke7 {[%clk 0:00:14]}  Qe2+ {[%clk 0:00:04]} 52. Kf6 {[%clk 0:00:13]}  Kg4 {[%clk 0:00:02]} 53. Qe5 {[%clk 0:00:08]}  Qc4 {[%clk 0:00:01]} 54. Qg5+ {[%clk 0:00:05]}  Kf3 {[%clk 0:00:02]} 55. Qxg6 {[%clk 0:00:02]}  Qxf4+ {[%clk 0:00:02]} 56. Qf5 {[%clk 0:00:02]}  Qxf5+ {[%clk 0:00:02]} 57. Kxf5 {[%clk 0:00:03]} 1/2-1/2


[Site "https://www.chess.com"]

[Event "Titled Tuesday Blitz July 18 Early 2023"]
[White "Sahib Singh"]
[Black "Molina Carretero, Daniel"]
[WhiteFideId "25618342"]
[BlackFideId "32071914"]
[WhiteElo "2639"]
[BlackElo "2339"]
[Result "1-0"]
[Round "1"]
[TimeControl "180+2"]
[Date "2023.07.18"]
[WhiteClock "0:01:37"]
[BlackClock "0:00:22"]
[Board "126"]

1. e4 {[%clk 0:02:55]}  c5 {[%clk 0:03:00]} 2. Nf3 {[%clk 0:02:52]}  d6 {[%clk 0:03:00]} 3. d4 {[%clk 0:02:51]}  cxd4 {[%clk 0:03:01]} 4. Nxd4 {[%clk 0:02:52]}  Nf6 {[%clk 0:03:01]} 5. Nc3 {[%clk 0:02:52]}  g6 {[%clk 0:03:02]} 6. Be3 {[%clk 0:02:51]}  Bg7 {[%clk 0:03:02]} 7. f3 {[%clk 0:02:52]}  Nc6 {[%clk 0:03:02]} 8. Qd2 {[%clk 0:02:50]}  O-O {[%clk 0:03:02]} 9. Bc4 {[%clk 0:02:50]}  Bd7 {[%clk 0:03:02]} 10. O-O-O {[%clk 0:02:49]}  Qa5 {[%clk 0:03:02]} 11. Kb1 {[%clk 0:02:48]}  Rfc8 {[%clk 0:03:02]} 12. Bb3 {[%clk 0:02:47]}  Ne5 {[%clk 0:03:02]} 13. g4 {[%clk 0:02:39]}  b5 {[%clk 0:03:01]} 14. Nd5 {[%clk 0:02:26]}  Qxd2 {[%clk 0:03:00]} 15. Rxd2 {[%clk 0:02:21]}  Nxd5 {[%clk 0:03:00]} 16. Bxd5 {[%clk 0:02:22]}  Nc4 {[%clk 0:03:00]} 17. Bxc4 {[%clk 0:02:21]}  Rxc4 {[%clk 0:02:50]} 18. h4 {[%clk 0:02:17]}  a5 {[%clk 0:02:40]} 19. h5 {[%clk 0:02:16]}  b4 {[%clk 0:02:37]} 20. hxg6 {[%clk 0:02:11]}  hxg6 {[%clk 0:02:37]} 21. g5 {[%clk 0:02:09]}  a4 {[%clk 0:02:20]} 22. Ne2 {[%clk 0:02:06]}  a3 {[%clk 0:01:30]} 23. b3 {[%clk 0:02:00]}  Rc7 {[%clk 0:01:18]} 24. Bd4 {[%clk 0:02:01]}  Rac8 {[%clk 0:00:56]} 25. Bxg7 {[%clk 0:01:43]}  Kxg7 {[%clk 0:00:57]} 26. Nf4 {[%clk 0:01:44]}  e6 {[%clk 0:00:28]} 27. Rdh2 {[%clk 0:01:41]}  Kf8 {[%clk 0:00:27]} 28. Rh8+ {[%clk 0:01:37]}  Ke7 {[%clk 0:00:28]} 29. Nxg6+ {[%clk 0:01:36]}  fxg6 {[%clk 0:00:22]} 30. R1h7# {[%clk 0:01:37]} 1-0


[Site "https://www.chess.com"]

[Event "Titled Tuesday Blitz July 18 Early 2023"]
[White "Ziatdinov, Raset"]
[Black "Jeet, Jain"]
[WhiteFideId "2015323"]
[BlackFideId "5073022"]
[WhiteElo "2339"]
[BlackElo "2639"]
[Result "0-1"]
[Round "1"]
[TimeControl "180+2"]
[Date "2023.07.18"]
[WhiteClock "0:00:02"]
[BlackClock "0:01:06"]
[Board "127"]

1. e4 {[%clk 0:03:00]}  c6 {[%clk 0:02:59]} 2. d4 {[%clk 0:02:59]}  d5 {[%clk 0:02:59]} 3. Nc3 {[%clk 0:03:00]}  dxe4 {[%clk 0:02:57]} 4. Nxe4 {[%clk 0:03:01]}  Nf6 {[%clk 0:02:53]} 5. Nxf6+ {[%clk 0:03:00]}  gxf6 {[%clk 0:02:54]} 6. c3 {[%clk 0:03:01]}  Rg8 {[%clk 0:02:51]} 7. Nf3 {[%clk 0:02:55]}  Bg4 {[%clk 0:02:49]} 8. h3 {[%clk 0:02:46]}  Bh5 {[%clk 0:02:49]} 9. Bf4 {[%clk 0:02:44]}  e6 {[%clk 0:02:49]} 10. g4 {[%clk 0:02:31]}  Bg6 {[%clk 0:02:48]} 11. Nh4 {[%clk 0:02:30]}  Bd6 {[%clk 0:02:46]} 12. Nxg6 {[%clk 0:02:29]}  hxg6 {[%clk 0:02:45]} 13. Qd2 {[%clk 0:02:27]}  f5 {[%clk 0:02:41]} 14. O-O-O {[%clk 0:02:18]}  Qc7 {[%clk 0:02:37]} 15. Be5 {[%clk 0:02:02]}  Nd7 {[%clk 0:02:35]} 16. f4 {[%clk 0:02:01]}  Bxe5 {[%clk 0:02:32]} 17. fxe5 {[%clk 0:01:54]}  O-O-O {[%clk 0:02:31]} 18. Qf4 {[%clk 0:01:45]}  Qa5 {[%clk 0:02:23]} 19. Kb1 {[%clk 0:01:43]}  Nxe5 {[%clk 0:02:16]} 20. Be2 {[%clk 0:00:59]}  Nd7 {[%clk 0:02:11]} 21. h4 {[%clk 0:00:57]}  Nb6 {[%clk 0:02:06]} 22. Bf3 {[%clk 0:00:55]}  Nc4 {[%clk 0:02:01]} 23. h5 {[%clk 0:00:50]}  Qb5 {[%clk 0:01:58]} 24. Qc1 {[%clk 0:00:48]}  fxg4 {[%clk 0:01:47]} 25. Bxg4 {[%clk 0:00:48]}  gxh5 {[%clk 0:01:45]} 26. Bxh5 {[%clk 0:00:48]}  Rg2 {[%clk 0:01:44]} 27. b3 {[%clk 0:00:33]}  Qa5 {[%clk 0:01:33]} 28. a4 {[%clk 0:00:04]}  Rb2+ {[%clk 0:01:28]} 29. Qxb2 {[%clk 0:00:04]}  Nxb2 {[%clk 0:01:29]} 30. Kxb2 {[%clk 0:00:05]}  f5 {[%clk 0:01:24]} 31. Bf7 {[%clk 0:00:05]}  Qd5 {[%clk 0:01:17]} 32. Rde1 {[%clk 0:00:03]}  Qg2+ {[%clk 0:01:14]} 33. Ka3 {[%clk 0:00:03]}  Qf3 {[%clk 0:01:09]} 34. Bxe6+ {[%clk 0:00:03]}  Kb8 {[%clk 0:01:10]} 35. Rh7 {[%clk 0:00:03]}  Qxc3 {[%clk 0:01:09]} 36. Rg1 {[%clk 0:00:02]}  Qxd4 {[%clk 0:01:05]} 37. Rgg7 {[%clk 0:00:02]}  Qc5+ {[%clk 0:01:06]} 38. Kb2 {[%clk 0:00:02]}  Rd2+ {[%clk 0:01:06]} 39. Kb1 {[%clk 0:00:03]}  Qc2+ {[%clk 0:01:05]} 40. Ka1 {[%clk 0:00:02]}  Qc1# {[%clk 0:01:06]} 0-1


[Site "https://www.chess.com"]

[Event "Titled Tuesday Blitz July 18 Early 2023"]
[White "Gutkin, Ilya"]
[Black "Suleymanli, Suleyman"]
[WhiteFideId "16203470"]
[BlackFideId "13416375"]
[WhiteElo "2334"]
[BlackElo "2636"]
[Result "1-0"]
[Round "1"]
[TimeControl "180+2"]
[Date "2023.07.18"]
[WhiteClock "0:00:06"]
[BlackClock "0:00:25"]
[Board "129"]

1. e4 {[%clk 0:02:59]}  e6 {[%clk 0:03:00]} 2. d4 {[%clk 0:02:59]}  d5 {[%clk 0:03:01]} 3. exd5 {[%clk 0:02:59]}  exd5 {[%clk 0:03:01]} 4. Nc3 {[%clk 0:02:58]}  Bb4 {[%clk 0:03:01]} 5. Bd3 {[%clk 0:02:58]}  Nc6 {[%clk 0:03:01]} 6. Ne2 {[%clk 0:02:58]}  Nge7 {[%clk 0:03:01]} 7. Bf4 {[%clk 0:02:54]}  Bf5 {[%clk 0:02:58]} 8. O-O {[%clk 0:02:53]}  Qd7 {[%clk 0:02:58]} 9. a3 {[%clk 0:02:52]}  Bd6 {[%clk 0:02:58]} 10. Qd2 {[%clk 0:02:51]}  O-O {[%clk 0:02:56]} 11. Rfe1 {[%clk 0:02:49]}  Bxd3 {[%clk 0:02:53]} 12. Qxd3 {[%clk 0:02:48]}  Rfe8 {[%clk 0:02:53]} 13. Rad1 {[%clk 0:02:35]}  Ng6 {[%clk 0:02:50]} 14. Bg3 {[%clk 0:02:26]}  a6 {[%clk 0:02:47]} 15. Qf3 {[%clk 0:02:22]}  Rad8 {[%clk 0:02:41]} 16. Kf1 {[%clk 0:01:41]}  Bxg3 {[%clk 0:02:29]} 17. hxg3 {[%clk 0:01:33]}  Na5 {[%clk 0:02:29]} 18. Nf4 {[%clk 0:01:24]}  Nxf4 {[%clk 0:02:23]} 19. gxf4 {[%clk 0:01:24]}  Rxe1+ {[%clk 0:02:22]} 20. Rxe1 {[%clk 0:01:24]}  h6 {[%clk 0:02:17]} 21. b3 {[%clk 0:01:15]}  Nc6 {[%clk 0:02:16]} 22. Qe3 {[%clk 0:00:58]}  Qd6 {[%clk 0:02:12]} 23. a4 {[%clk 0:00:56]}  Qg6 {[%clk 0:02:09]} 24. Qd2 {[%clk 0:00:51]}  Nb4 {[%clk 0:02:07]} 25. Re2 {[%clk 0:00:49]}  Nc6 {[%clk 0:02:06]} 26. g3 {[%clk 0:00:48]}  h5 {[%clk 0:02:05]} 27. Kg2 {[%clk 0:00:47]}  h4 {[%clk 0:02:05]} 28. Re3 {[%clk 0:00:43]}  Qf6 {[%clk 0:02:03]} 29. Ne2 {[%clk 0:00:36]}  g6 {[%clk 0:02:01]} 30. c3 {[%clk 0:00:33]}  Ne7 {[%clk 0:02:01]} 31. g4 {[%clk 0:00:28]}  Nc8 {[%clk 0:01:56]} 32. Re5 {[%clk 0:00:26]}  c6 {[%clk 0:01:53]} 33. Qe3 {[%clk 0:00:25]}  Nd6 {[%clk 0:01:53]} 34. f3 {[%clk 0:00:13]}  Kh7 {[%clk 0:01:52]} 35. Ng1 {[%clk 0:00:12]}  b5 {[%clk 0:01:45]} 36. a5 {[%clk 0:00:09]}  b4 {[%clk 0:01:45]} 37. cxb4 {[%clk 0:00:07]}  Rb8 {[%clk 0:01:45]} 38. Qd2 {[%clk 0:00:04]}  Qd8 {[%clk 0:01:29]} 39. Nh3 {[%clk 0:00:04]}  Rb7 {[%clk 0:01:29]} 40. Qe3 {[%clk 0:00:04]}  Kg7 {[%clk 0:01:29]} 41. f5 {[%clk 0:00:04]}  Rxb4 {[%clk 0:01:28]} 42. fxg6 {[%clk 0:00:03]}  fxg6 {[%clk 0:01:29]} 43. Nf4 {[%clk 0:00:03]}  Qf6 {[%clk 0:01:25]} 44. Re6 {[%clk 0:00:03]}  Qxd4 {[%clk 0:01:19]} 45. Rxg6+ {[%clk 0:00:04]}  Kh8 {[%clk 0:01:13]} 46. Qe6 {[%clk 0:00:04]}  Rb8 {[%clk 0:00:34]} 47. Rh6+ {[%clk 0:00:04]}  Kg7 {[%clk 0:00:32]} 48. Nh5+ {[%clk 0:00:05]}  Kf8 {[%clk 0:00:32]} 49. Qxd6+ {[%clk 0:00:05]}  Kf7 {[%clk 0:00:30]} 50. Rh7+ {[%clk 0:00:05]}  Ke8 {[%clk 0:00:26]} 51. Nf6+ {[%clk 0:00:05]}  Qxf6 {[%clk 0:00:24]} 52. Qxf6 {[%clk 0:00:06]}  Rb7 {[%clk 0:00:25]} 53. Qh8# {[%clk 0:00:06]} 1-0


[Site "https://www.chess.com"]

[Event "Titled Tuesday Blitz July 18 Early 2023"]
[White "Florescu, Codrut-Constantin"]
[Black "Okike, David"]
[WhiteFideId "1202200"]
[BlackFideId "8500134"]
[WhiteElo "2633"]
[BlackElo "2326"]
[Result "1-0"]
[Round "1"]
[TimeControl "180+2"]
[Date "2023.07.18"]
[WhiteClock "0:01:22"]
[BlackClock "0:01:08"]
[Board "132"]

1. d4 {[%clk 0:03:00]}  Nf6 {[%clk 0:02:58]} 2. Nf3 {[%clk 0:02:59]}  e6 {[%clk 0:02:58]} 3. c4 {[%clk 0:02:59]}  Bb4+ {[%clk 0:02:57]} 4. Bd2 {[%clk 0:03:00]}  a5 {[%clk 0:02:58]} 5. Nc3 {[%clk 0:02:59]}  O-O {[%clk 0:02:56]} 6. g3 {[%clk 0:02:59]}  b6 {[%clk 0:02:55]} 7. Bg2 {[%clk 0:02:59]}  Ba6 {[%clk 0:02:55]} 8. Ne5 {[%clk 0:02:53]}  c6 {[%clk 0:02:55]} 9. O-O {[%clk 0:02:50]}  d5 {[%clk 0:02:54]} 10. b3 {[%clk 0:02:48]}  h6 {[%clk 0:02:53]} 11. Rc1 {[%clk 0:02:47]}  Nfd7 {[%clk 0:02:51]} 12. Nd3 {[%clk 0:02:11]}  Ba3 {[%clk 0:02:49]} 13. Rb1 {[%clk 0:02:07]}  dxc4 {[%clk 0:02:48]} 14. bxc4 {[%clk 0:02:04]}  Bxc4 {[%clk 0:02:48]} 15. Nf4 {[%clk 0:01:58]}  Qc7 {[%clk 0:02:42]} 16. Qa4 {[%clk 0:01:51]}  Bd6 {[%clk 0:02:35]} 17. Qxc4 {[%clk 0:01:50]}  Ra7 {[%clk 0:02:19]} 18. e4 {[%clk 0:01:48]}  b5 {[%clk 0:02:17]} 19. Qe2 {[%clk 0:01:47]}  b4 {[%clk 0:02:16]} 20. Na4 {[%clk 0:01:44]}  c5 {[%clk 0:02:14]} 21. e5 {[%clk 0:01:38]}  Be7 {[%clk 0:02:13]} 22. Rfc1 {[%clk 0:01:38]}  Na6 {[%clk 0:02:11]} 23. d5 {[%clk 0:01:34]}  Qxe5 {[%clk 0:02:09]} 24. Qxe5 {[%clk 0:01:28]}  Nxe5 {[%clk 0:02:08]} 25. dxe6 {[%clk 0:01:28]}  fxe6 {[%clk 0:01:59]} 26. Nxe6 {[%clk 0:01:28]}  Rf6 {[%clk 0:01:58]} 27. Nexc5 {[%clk 0:01:27]}  Nxc5 {[%clk 0:01:57]} 28. Nxc5 {[%clk 0:01:26]}  Ng4 {[%clk 0:01:54]} 29. Ne4 {[%clk 0:01:25]}  Rf8 {[%clk 0:01:53]} 30. h3 {[%clk 0:01:25]}  Ne5 {[%clk 0:01:53]} 31. Be3 {[%clk 0:01:25]}  Rd7 {[%clk 0:01:51]} 32. Nc5 {[%clk 0:01:25]}  Bxc5 {[%clk 0:01:34]} 33. Rxc5 {[%clk 0:01:26]}  Nd3 {[%clk 0:01:28]} 34. Rxa5 {[%clk 0:01:25]}  Kh8 {[%clk 0:01:27]} 35. Rd5 {[%clk 0:01:24]}  Rxd5 {[%clk 0:01:25]} 36. Bxd5 {[%clk 0:01:25]}  Rc8 {[%clk 0:01:21]} 37. Bb3 {[%clk 0:01:25]}  Ne5 {[%clk 0:01:15]} 38. Rd1 {[%clk 0:01:24]}  Nc4 {[%clk 0:01:10]} 39. Rc1 {[%clk 0:01:23]}  Nb6 {[%clk 0:01:10]} 40. Rxc8+ {[%clk 0:01:22]}  Nxc8 {[%clk 0:01:08]} 41. Bc5 {[%clk 0:01:22]} 1-0


[Site "https://www.chess.com"]